bitfinex/quotes_SOLUSD_20220128
["timestamp","ask_amount","ask_price","bid_price","bid_amount"]
[1643382518344,0.25,89.718,89.633,16.62007625]
[1643382518542,0.1,89.728,89.633,16.62007625]
[1643382518745,0.1,89.75,89.643,6.0]
[1643382518945,0.1,89.783,89.65,13.58]
[1643382519143,6.0,89.774,89.65,13.58]
[1643382519346,0.1,89.783,89.661,112.0]
[1643382519546,45.99235256,89.783,89.671,6.0]
[1643382519744,0.1,89.782,89.68,16.725]
[1643382519943,0.1,89.782,89.671,6.0]
[1643382519944,0.1,89.782,89.69,13.58]
[1643382520144,6.0,89.773,89.68,13.58]
[1643382521358,16.731,89.77,89.68,13.58]
[1643382521657,6.0,89.76,89.64,13.58]
[1643382521855,6.0,89.76,89.58,169.7]
[1643382521856,6.0,89.76,89.63,13.58]
[1643382522058,0.25,89.759,89.63,13.58]
[1643382522256,0.25,89.759,89.631,16.87007625]
[1643382522460,6.0,89.762,89.632,112.0]
[1643382522461,5.75,89.762,89.632,112.0]
[1643382522658,16.733,89.76,89.632,112.0]
[1643382522857,0.1,89.759,89.632,128.62007625]
[1643382523057,0.1,89.759,89.633,16.62007625]
[1643382524084,0.1,89.759,89.634,0.25]
[1643382524283,38.43084256,89.749,89.633,0.25]
[1643382524484,0.1,89.748,89.633,0.25]
[1643382524686,6.0,89.739,89.633,0.25]
[1643382524884,0.25,89.738,89.633,0.25]
[1643382525084,6.25,89.738,89.633,0.25]
[1643382525284,6.35,89.738,89.633,0.25]
[1643382525485,6.25,89.738,89.633,0.25]
[1643382526488,6.0,89.73,89.633,0.25]
[1643382526685,6.0,89.728,89.633,0.25]
[1643382526886,0.25,89.727,89.63,13.58]
[1643382527087,6.0,89.73,89.63,13.58]
[1643382527288,6.0,89.73,89.631,0.25]
[1643382527485,6.0,89.73,89.631,112.25]
[1643382528295,0.25,89.729,89.631,112.25]
[1643382528894,0.25,89.729,89.63,13.58]
[1643382529095,34.89914206,89.719,89.63,13.58]
[1643382529294,0.25,89.718,89.61,13.58]
[1643382529497,6.0,89.709,89.61,13.58]
[1643382529897,0.25,89.708,89.595,112.0]
[1643382530097,0.25,89.708,89.59,13.58]
[1643382530494,6.0,89.707,89.59,13.58]
[1643382530696,6.0,89.707,89.591,0.25]
[1643382530898,0.25,89.706,89.591,0.25]
[1643382531098,39.42195128,89.689,89.591,0.25]
[1643382531305,0.25,89.706,89.591,0.25]
[1643382531496,3.01843783,89.745,89.591,0.25]
[1643382531497,0.1,89.716,89.592,32.60868668]
[1643382531696,0.1,89.716,89.593,112.0]
[1643382531898,0.25,89.716,89.593,153.46229738]
[1643382532098,16.742,89.71,89.593,153.46229738]
[1643382532299,1.51748934,89.707,89.593,153.46229738]
[1643382532500,1.51748934,89.707,89.593,112.25]
[1643382532501,6.0,89.697,89.593,112.25]
[1643382533098,6.0,89.696,89.593,128.87007625]
[1643382533299,0.25,89.695,89.593,128.87007625]
[1643382533600,0.25,89.695,89.574,16.62007625]
[1643382533904,1.51748934,89.689,89.56,13.58]
[1643382534198,43.38952389,89.676,89.55,13.58]
[1643382534400,1.51748934,89.672,89.55,13.58]
[1643382534601,6.0,89.662,89.55,13.58]
[1643382534798,0.25,89.661,89.55,13.58]
[1643382535200,0.25,89.661,89.551,0.25]
[1643382535800,3.20669142,89.661,89.55,13.58]
[1643382536001,3.20669142,89.661,89.528,15.98861043]
[1643382536002,6.0,89.651,89.53,13.58]
[1643382536302,0.25,89.65,89.538,6.0]
[1643382536501,6.0,89.65,89.541,112.0]
[1643382536701,1.51748934,89.674,89.551,6.0]
[1643382536901,16.747,89.69,89.56,30.324]
[1643382537301,16.747,89.69,89.561,25.73055447]
[1643382537504,0.1,89.711,89.561,44.65969073]
[1643382537801,37.3276322,89.711,89.562,90.84889073]
[1643382538003,6.0,89.701,89.562,90.84889073]
[1643382538201,16.745,89.7,89.564,112.0]
[1643382538401,6.0,89.701,89.565,0.25]
[1643382538608,6.0,89.693,89.574,6.0]
[1643382538809,0.1,89.709,89.58,13.58]
[1643382539001,1.51748934,89.714,89.59,6.0]
[1643382539302,74.8744,89.763,89.6,13.58]
[1643382539303,0.25,89.712,89.6,13.58]
[1643382539507,0.25,89.712,89.601,112.0]
[1643382539813,0.1,89.721,89.601,131.29961663]
[1643382540009,4.54192713,89.776,89.601,131.29961663]
[1643382540010,1.51748934,89.74,89.614,0.31012046]
[1643382540207,1.51748934,89.742,89.62,13.58]
[1643382540407,1.51748934,89.74,89.622,6.0]
[1643382540610,1.51748934,89.74,89.621,0.25]
[1643382540611,42.95082353,89.739,89.63,6.0]
[1643382540808,0.1,89.738,89.64,13.58]
[1643382541308,0.1,89.738,89.641,0.25]
[1643382541512,1.51748934,89.737,89.65,6.0]
[1643382541711,1.51748934,89.742,89.66,13.58]
[1643382541907,1.51748934,89.74,89.66,13.58]
[1643382542109,1.51748934,89.743,89.661,0.25]
[1643382542309,49.19863347,89.742,89.661,0.25]
[1643382542539,0.1,89.741,89.661,0.25]
[1643382542708,1.61748934,89.741,89.661,0.25]
[1643382542909,0.1,89.741,89.661,0.25]
[1643382543110,0.1,89.741,89.661,112.25]
[1643382543311,1.61748934,89.741,89.661,112.25]
[1643382544009,0.1,89.741,89.661,112.25]
[1643382544711,1.51748934,89.742,89.661,121.74194404]
[1643382544909,1.51748934,89.742,89.662,16.74573621]
[1643382545113,1.51748934,89.755,89.662,16.74573621]
[1643382545314,0.25,89.754,89.662,16.74573621]
[1643382545513,1.51748934,89.744,89.66,13.58]
[1643382545711,1.51748934,89.726,89.66,13.58]
[1643382545912,41.58251264,89.725,89.62,13.58]
[1643382546113,1.61748934,89.724,89.62,13.58]
[1643382546318,1.51748934,89.718,89.62,13.58]
[1643382546612,1.51748934,89.738,89.621,44.5301711]
[1643382546814,1.51748934,89.74,89.621,44.7801711]
[1643382547013,1.51748934,89.737,89.622,42.22629068]
[1643382547312,0.1,89.762,89.631,6.0]
[1643382547313,1.51748934,89.738,89.631,6.0]
[1643382547515,1.51748934,89.737,89.64,13.58]
[1643382547716,1.51748934,89.733,89.641,112.0]
[1643382548014,6.0,89.723,89.641,112.0]
[1643382548215,1.51748934,89.723,89.641,112.0]
[1643382548414,1.51748934,89.724,89.641,112.0]
[1643382548613,1.51748934,89.731,89.642,0.25]
[1643382548814,1.51748934,89.737,89.642,0.25]
[1643382549013,1.51748934,89.736,89.642,0.25]
[1643382549213,0.1,89.738,89.65,16.731]
[1643382549418,0.1,89.738,89.65,30.311]
[1643382549616,1.51748934,89.746,89.66,6.0]
[1643382549815,1.51748934,89.751,89.671,112.0]
[1643382550015,1.51748934,89.753,89.671,112.0]
[1643382550218,1.51748934,89.754,89.672,0.25]
[1643382550418,44.73290757,89.753,89.672,0.25]
[1643382550618,0.35,89.752,89.67,13.58]
[1643382550818,1.51748934,89.745,89.67,13.58]
[1643382551018,1.51748934,89.741,89.67,13.58]
[1643382551219,1.51748934,89.74,89.67,13.58]
[1643382551421,0.35,89.752,89.67,13.58]
[1643382551422,1.51748934,89.739,89.67,13.58]
[1643382551617,1.51748934,89.743,89.67,13.58]
[1643382551821,6.0,89.733,89.65,13.58]
[1643382552016,6.0,89.728,89.64,13.58]
[1643382552219,6.0,89.728,89.638,0.25]
[1643382552419,39.45149737,89.719,89.641,0.25]
[1643382552619,0.1,89.718,89.641,0.25]
[1643382552823,0.1,89.718,89.641,112.25]
[1643382553422,0.1,89.718,89.641,121.73472181]
[1643382553619,1.51748934,89.743,89.651,6.0]
[1643382553824,1.51748934,89.746,89.66,13.58]
[1643382554226,1.51748934,89.749,89.661,0.25]
[1643382554424,1.51748934,89.76,89.681,112.0]
[1643382554626,1.51748934,89.753,89.691,6.0]
[1643382554824,1.51748934,89.769,89.692,0.25]
[1643382555027,1.51748934,89.769,89.7,6.0]
[1643382555225,44.476734,89.768,89.692,0.25]
[1643382555428,0.1,89.767,89.69,30.303]
[1643382555627,0.1,89.767,89.691,0.25]
[1643382555826,1.51748934,89.764,89.691,0.25]
[1643382556026,1.51748934,89.766,89.691,0.25]
[1643382556225,1.51748934,89.769,89.691,0.25]
[1643382556427,1.51748934,89.771,89.691,0.25]
[1643382556626,1.51748934,89.772,89.691,0.25]
[1643382556825,1.51748934,89.773,89.7,16.721]
[1643382557026,1.51748934,89.778,89.7,36.301]
[1643382557327,1.51748934,89.786,89.701,0.25]
[1643382557956,1.52171333,89.787,89.7,36.302]
[1643382558164,1.51748934,89.783,89.7,13.58]
[1643382558351,7.51748934,89.777,89.668,16.74573621]
[1643382558550,6.0,89.767,89.68,13.58]
[1643382558951,6.0,89.767,89.681,0.25]
[1643382559349,1.51748934,89.769,89.681,0.25]
[1643382559949,1.51748934,89.768,89.681,0.25]
[1643382560153,1.51748934,89.772,89.681,0.25]
[1643382560350,1.51748934,89.774,89.681,0.25]
[1643382560553,1.51748934,89.773,89.681,0.25]
[1643382560751,1.76748934,89.773,89.681,0.25]
[1643382560950,6.0,89.775,89.681,0.25]
[1643382561551,6.0,89.77,89.681,0.25]
[1643382561953,1.51748934,89.777,89.681,112.25]
[1643382562755,1.51748934,89.78,89.681,112.25]
[1643382562954,1.51748934,89.782,89.681,112.25]
[1643382563354,1.51748934,89.782,89.69,16.724]
[1643382563554,0.1,89.784,89.69,16.724]
[1643382563754,1.61748934,89.784,89.691,0.25]
[1643382563954,1.51748934,89.789,89.691,0.25]
[1643382564155,1.51748934,89.788,89.691,0.25]
[1643382564354,39.29734288,89.788,89.691,0.25]
[1643382564555,0.10422399,89.787,89.691,0.25]
[1643382565056,1.51748934,89.786,89.691,0.25]
[1643382565257,1.51748934,89.773,89.691,0.25]
[1643382565460,6.0,89.778,89.691,0.25]
[1643382565461,1.51748934,89.769,89.691,0.25]
[1643382565662,6.0,89.763,89.691,0.25]
[1643382565856,0.25,89.762,89.691,0.25]
[1643382566256,1.51748934,89.769,89.691,0.25]
[1643382566461,1.51748934,89.767,89.691,0.25]
[1643382566658,1.51748934,89.77,89.691,112.25]
[1643382567058,1.51748934,89.77,89.691,0.25]
[1643382567258,1.51748934,89.761,89.691,0.25]
[1643382567459,1.51748934,89.76,89.691,0.25]
[1643382568461,1.51748934,89.76,89.691,112.25]
[1643382568661,1.51748934,89.759,89.691,112.25]
[1643382568861,3.01843783,89.785,89.7,16.722]
[1643382568862,1.51748934,89.768,89.7,16.722]
[1643382569063,0.00422399,89.787,89.7,16.722]
[1643382569064,1.51748934,89.776,89.71,13.58]
[1643382569262,0.00422399,89.787,89.711,0.25]
[1643382569263,1.51748934,89.779,89.711,0.25]
[1643382569463,1.51748934,89.779,89.711,9.73472181]
[1643382569663,1.51748934,89.78,89.711,15.73472181]
[1643382569864,1.51748934,89.781,89.711,15.73472181]
[1643382570063,1.51748934,89.781,89.721,112.0]
[1643382570266,1.51748934,89.781,89.722,0.25]
[1643382570475,0.00422399,89.787,89.722,0.25]
[1643382570476,1.51748934,89.783,89.73,13.58]
[1643382570664,1.51748934,89.782,89.73,13.58]
[1643382570868,0.00422399,89.787,89.731,0.25]
[1643382571067,0.00422399,89.787,89.74,6.0]
[1643382571268,0.00422399,89.787,89.741,0.25]
[1643382571469,0.00422399,89.787,89.75,16.712]
[1643382571868,0.00422399,89.787,89.751,0.25]
[1643382572068,0.00422399,89.787,89.75,16.712]
[1643382572069,0.00422399,89.787,89.742,6.0]
[1643382572268,0.00422399,89.787,89.74,13.58]
[1643382572467,1.51748934,89.782,89.74,13.58]
[1643382572669,1.51748934,89.775,89.7,13.58]
[1643382572870,1.51748934,89.766,89.7,13.58]
[1643382573069,1.51748934,89.768,89.7,13.58]
[1643382573271,1.51748934,89.771,89.7,13.58]
[1643382573476,1.51748934,89.774,89.701,112.0]
[1643382573770,0.00422399,89.787,89.71,16.721]
[1643382573771,1.51748934,89.777,89.71,16.721]
[1643382573970,1.51748934,89.778,89.71,16.721]
[1643382574271,1.51748934,89.775,89.71,16.721]
[1643382574471,1.51748934,89.777,89.71,16.721]
[1643382574873,0.00422399,89.787,89.711,10.30607858]
[1643382575074,0.00422399,89.787,89.74,16.713]
[1643382575272,0.00422399,89.787,89.741,0.25]
[1643382575472,0.00422399,89.787,89.742,112.0]
[1643382575772,0.00422399,89.787,89.743,0.25]
[1643382576173,0.00422399,89.787,89.744,11.17274524]
[1643382576372,0.00422399,89.787,89.75,16.712]
[1643382576572,0.00422399,89.787,89.76,13.58]
[1643382576776,0.00422399,89.787,89.761,112.25]
[1643382577375,0.00422399,89.787,89.761,123.42274524]
[1643382577574,0.00422399,89.787,89.771,112.0]
[1643382577775,0.00422399,89.787,89.772,0.25]
[1643382578482,0.00422399,89.787,89.78,13.58]
[1643382578882,0.00422399,89.787,89.781,0.25]
[1643382579077,0.00422399,89.787,89.781,13.72037256]
[1643382579277,1.51748934,89.84,89.79,16.703]
[1643382579478,1.51748934,89.848,89.8,13.58]
[1643382579677,1.51748934,89.855,89.801,112.0]
[1643382579878,1.51748934,89.855,89.8,19.58]
[1643382579879,1.51748934,89.851,89.8,13.58]
[1643382580085,1.51748934,89.843,89.8,13.58]
[1643382580279,1.51748934,89.843,89.77,13.58]
[1643382580479,42.19279442,89.85,89.77,13.58]
[1643382580480,1.51748934,89.836,89.77,13.58]
[1643382580878,1.51748934,89.835,89.77,13.58]
[1643382581082,1.51748934,89.833,89.77,13.58]
[1643382581282,0.1,89.849,89.77,13.58]
[1643382581283,1.51748934,89.841,89.77,13.58]
[1643382581479,0.1,89.849,89.77,13.58]
[1643382581480,1.51748934,89.837,89.77,13.58]
[1643382581680,0.1,89.849,89.771,112.0]
[1643382581681,1.51748934,89.838,89.771,112.0]
[1643382581879,1.51748934,89.851,89.771,131.04319472]
[1643382582079,1.51748934,89.851,89.772,19.04319472]
[1643382582280,1.51748934,89.855,89.772,30.21565107]
[1643382582480,1.51748934,89.855,89.773,30.21565107]
[1643382582680,1.51748934,89.862,89.782,6.0]
[1643382582880,1.51748934,89.86,89.79,30.286]
[1643382583082,4.54192713,89.911,89.791,112.0]
[1643382583083,1.51748934,89.866,89.791,112.0]
[1643382583282,1.51748934,89.866,89.791,112.25]
[1643382583482,1.51748934,89.866,89.791,125.71545821]
[1643382583685,1.51748934,89.866,89.792,13.46545821]
[1643382583901,1.51748934,89.866,89.793,0.25]
[1643382584102,1.51748934,89.873,89.81,16.701]
[1643382584307,16.94597235,89.929,89.824,0.31966311]
[1643382584308,1.51748934,89.901,89.824,0.31966311]
[1643382584604,3.01843783,89.927,89.824,0.31966311]
[1643382584605,0.36588934,89.927,89.824,0.31966311]
[1643382584906,3.01843783,89.956,89.831,112.0]
[1643382585103,4.64192713,89.977,89.841,6.0]
[1643382585104,3.01843783,89.962,89.841,6.0]
[1643382585303,3.01843783,89.962,89.87,16.688]
[1643382585502,3.01843783,89.961,89.87,30.268]
[1643382585704,3.01843783,89.962,89.871,0.25]
[1643382585904,3.01843783,89.962,89.871,2.54300186]
[1643382586105,6.0,89.952,89.871,2.54300186]
[1643382586407,0.1,89.972,89.871,2.54300186]
[1643382586408,0.1,89.972,89.88,16.688]
[1643382586607,3.01843783,89.995,89.89,19.58]
[1643382586805,3.01843783,90.005,89.891,0.25]
[1643382587008,3.01843783,90.006,89.891,126.50885551]
[1643382587206,43.21312557,90.005,89.892,18.65020529]
[1643382587405,43.21312557,90.005,89.9,16.685]
[1643382587406,0.1,90.004,89.9,16.685]
[1643382587606,3.01843783,90.001,89.9,16.685]
[1643382587906,3.01843783,90.001,89.89,13.58]
[1643382587907,6.0,89.995,89.89,13.58]
[1643382588107,6.0,89.986,89.89,13.58]
[1643382588310,3.01843783,89.978,89.87,13.58]
[1643382588506,6.0,89.968,89.87,13.58]
[1643382588911,6.0,89.965,89.871,2.29195471]
[1643382589110,0.1,89.967,89.871,2.29195471]
[1643382589307,0.1,89.976,89.871,2.29195471]
[1643382589907,0.1,89.976,89.87,13.58]
[1643382589908,0.35,89.976,89.87,13.58]
[1643382590510,6.0,89.967,89.87,13.58]
[1643382590711,16.694,89.96,89.87,13.58]
[1643382590909,0.1,89.959,89.87,13.58]
[1643382591111,6.0,89.95,89.87,13.58]
[1643382591310,44.34166824,89.949,89.87,13.58]
[1643382591512,6.0,89.939,89.87,13.58]
[1643382592012,0.25,89.938,89.87,13.58]
[1643382592213,0.25,89.938,89.84,13.58]
[1643382592409,6.0,89.93,89.85,16.694]
[1643382592610,6.0,89.929,89.85,16.694]
[1643382592812,6.1,89.929,89.85,16.694]
[1643382593014,0.25,89.928,89.84,13.58]
[1643382593413,0.25,89.928,89.841,0.25]
[1643382593611,0.1,89.947,89.841,0.25]
[1643382593812,6.0,89.938,89.841,2.54195471]
[1643382594016,6.0,89.938,89.842,2.29195471]
[1643382594414,0.1,89.947,89.843,0.25]
[1643382594615,111.9,90.137,89.853,112.0]
[1643382594616,6.0,89.982,89.853,112.0]
[1643382594815,6.0,89.982,89.86,13.58]
[1643382595015,6.0,89.996,89.864,112.0]
[1643382595215,6.1,89.996,89.864,112.0]
[1643382595417,43.34354199,89.995,89.865,29.11678302]
[1643382595616,6.0,89.985,89.87,16.691]
[1643382595816,22.8959,89.984,89.88,13.58]
[1643382596015,6.0,89.974,89.88,13.58]
[1643382596418,0.25,89.973,89.881,2.54195471]
[1643382596621,0.25,89.973,89.881,114.54195471]
[1643382596818,0.25,89.973,89.882,2.29195471]
[1643382597318,0.25,89.973,89.881,112.25]
[1643382597518,6.0,89.97,89.881,112.0]
[1643382597718,6.0,89.97,89.88,30.269]
[1643382597920,0.25,89.969,89.882,0.25]
[1643382598117,0.25,89.969,89.88,13.58]
[1643382598118,0.35,89.969,89.88,13.58]
[1643382598318,112.25,89.969,89.86,13.58]
[1643382598518,6.0,89.959,89.851,11.09517858]
[1643382598918,6.25,89.958,89.852,2.29195471]
[1643382599122,6.1,89.958,89.852,2.29195471]
[1643382599318,0.25,89.957,89.86,16.693]
[1643382599521,6.0,89.95,89.86,13.58]
[1643382599921,0.25,89.949,89.86,13.58]
[1643382600824,0.25,89.957,89.86,13.58]
[1643382601022,16.699,89.93,89.86,13.58]
[1643382601220,46.49028163,89.929,89.86,13.58]
[1643382601421,6.0,89.92,89.861,2.54195471]
[1643382601624,0.1,89.928,89.861,2.54195471]
[1643382601821,6.0,89.919,89.862,2.29195471]
[1643382602222,0.1,89.956,89.863,0.25]
[1643382602423,0.1,89.956,89.863,11.34517858]
[1643382602628,6.0,89.99,89.864,114.29195471]
[1643382602924,0.25,89.989,89.865,0.25]
[1643382603126,6.0,89.989,89.865,29.27064728]
[1643382603324,6.0,89.989,89.87,16.69]
[1643382603524,6.0,89.989,89.88,13.58]
[1643382603737,6.0,89.989,89.881,112.0]
[1643382603928,6.0,89.989,89.881,123.34517858]
[1643382604227,6.0,89.989,89.89,16.687]
[1643382604425,6.1,89.989,89.9,13.58]
[1643382604625,6.0,89.98,89.9,13.58]
[1643382604825,6.0,89.979,89.901,0.25]
[1643382605027,0.1,89.979,89.901,0.25]
[1643382605226,0.1,89.979,89.901,112.25]
[1643382605427,0.35,89.979,89.901,0.25]
[1643382605927,0.25,89.987,89.901,0.25]
[1643382606129,6.0,89.988,89.902,2.29195471]
[1643382606328,0.1,89.997,89.903,0.25]
[1643382606731,0.1,90.011,89.904,129.9254687]
[1643382606932,0.1,90.011,89.91,16.683]
[1643382607129,3.15229208,90.011,89.92,13.58]
[1643382607330,47.11448321,90.01,89.921,0.25]
[1643382607530,6.0,90.0,89.921,0.25]
[1643382607729,6.0,90.0,89.922,2.29195471]
[1643382608129,6.0,90.0,89.923,11.16606746]
[1643382608531,6.0,90.0,89.924,2.29195471]
[1643382608832,0.1,90.009,89.93,16.679]
[1643382609036,3.15574152,90.022,89.94,13.58]
[1643382609232,3.15574152,90.022,89.941,112.0]
[1643382609233,0.1,90.022,89.941,112.0]
[1643382609435,0.1,90.022,89.941,112.25]
[1643382609733,0.1,90.038,89.96,70.0]
[1643382609930,0.1,90.038,89.959,0.32182841]
[1643382609931,3.01843783,90.064,89.97,13.58]
[1643382610131,28.27709268,90.12,89.994,0.30127711]
[1643382610132,3.01843783,90.086,89.994,0.30127711]
[1643382610330,3.01843783,90.086,90.0,13.58]
[1643382610534,3.01843783,90.101,90.0,13.58]
[1643382610733,3.01843783,90.099,90.001,11.11204524]
[1643382610934,3.01843783,90.104,90.02,16.66]
[1643382611139,3.01843783,90.104,90.02,30.24]
[1643382611333,3.01843783,90.144,90.021,2.54195471]
[1643382611736,3.01843783,90.144,90.022,19.90216]
[1643382611934,42.68673486,90.143,90.022,30.76420524]
[1643382612133,3.04736782,90.142,90.05,16.653]
[1643382612532,3.26843783,90.141,90.05,16.653]
[1643382612734,3.04736782,90.14,90.05,16.653]
[1643382612936,3.04736782,90.142,90.05,16.653]
[1643382613135,3.01843783,90.141,90.051,0.25]
[1643382613435,42.68673486,90.143,90.06,16.655]
[1643382613436,3.04736782,90.14,90.06,16.655]
[1643382613638,3.04736782,90.14,90.06,16.96787968]
[1643382613844,3.01843783,90.169,90.07,19.58]
[1643382614036,9.15258744,90.218,90.07,19.58]
[1643382614037,3.01843783,90.186,90.071,6.0]
[1643382614239,3.01843783,90.191,90.071,34.26176077]
[1643382614433,9.15258744,90.243,90.071,34.26176077]
[1643382614434,3.01843783,90.205,90.08,6.0]
[1643382614634,3.01843783,90.213,90.114,0.30174657]
[1643382614835,3.01843783,90.274,90.089,0.31259571]
[1643382615036,3.01843783,90.273,90.115,17.00573621]
[1643382615236,3.0239641,90.278,90.116,112.25]
[1643382615438,6.0,90.263,90.13,13.58]
[1643382615636,40.81093458,90.262,90.131,112.0]
[1643382615837,0.1,90.239,90.14,22.637]
[1643382616037,0.1,90.259,90.15,13.58]
[1643382616440,6.0,90.25,90.108,11.48790174]
[1643382616636,46.4435,90.249,90.11,13.58]
[1643382616840,16.646,90.22,90.11,30.226]
[1643382617037,6.0,90.21,90.11,30.226]
[1643382617238,0.25,90.209,90.11,30.226]
[1643382617438,6.25,90.209,90.11,13.58]
[1643382617740,6.35,90.209,90.11,13.58]
[1643382617938,6.25,90.209,90.11,13.58]
[1643382618340,6.0,90.209,90.11,13.58]
[1643382619239,0.25,90.208,90.11,13.58]
[1643382619839,0.25,90.208,90.111,2.53114552]
[1643382620140,0.25,90.208,90.11,13.58]
[1643382620340,6.0,90.2,90.11,13.58]
[1643382620540,0.35,90.208,90.09,13.58]
[1643382620740,0.25,90.199,90.09,13.58]
[1643382620942,0.1,90.206,90.09,13.58]
[1643382621142,6.0,90.197,90.09,13.58]
[1643382621352,16.652,90.19,90.09,13.58]
[1643382621550,6.0,90.18,90.09,13.58]
[1643382621751,0.25,90.179,90.09,13.58]
[1643382621951,6.25,90.179,90.09,13.58]
[1643382622150,6.35,90.179,90.09,13.58]
[1643382622352,6.25,90.179,90.09,13.58]
[1643382622549,46.39500263,90.159,90.09,13.58]
[1643382622751,0.35,90.158,90.09,13.58]
[1643382622952,0.35,90.158,90.055,2.28130431]
[1643382622953,6.0,90.149,90.055,2.28130431]
[1643382623151,6.0,90.149,90.056,10.66003]
[1643382623352,0.25,90.148,90.056,10.66003]
[1643382623953,0.25,90.148,90.057,2.28130431]
[1643382624352,0.25,90.148,90.059,10.65967]
[1643382624653,0.1,90.158,90.06,0.25]
[1643382624853,16.655,90.17,90.062,10.65932]
[1643382625070,0.1,90.169,90.062,10.65932]
[1643382625271,0.1,90.169,90.063,33.51561613]
[1643382625471,6.0,90.188,90.064,10.65908]
[1643382625672,49.43951181,90.187,90.064,46.20600044]
[1643382625872,0.1,90.186,90.065,33.51561613]
[1643382626073,0.1,90.186,90.07,16.653]
[1643382626273,0.1,90.186,90.08,13.58]
[1643382626572,6.0,90.177,90.082,10.65695]
[1643382626772,6.0,90.177,90.083,0.25]
[1643382626972,6.0,90.177,90.084,10.65672]
[1643382627181,0.25,90.176,90.084,10.65672]
[1643382628576,16.654,90.17,90.084,10.65672]
[1643382628777,0.35,90.169,90.084,10.65672]
[1643382628976,6.0,90.16,90.084,10.65672]
[1643382629178,37.46086356,90.159,90.06,13.58]
[1643382629377,0.1,90.158,90.06,13.58]
[1643382629576,6.0,90.149,90.06,13.58]
[1643382629780,0.25,90.148,90.06,13.58]
[1643382630980,16.66,90.14,90.042,2.28130431]
[1643382631378,6.0,90.13,90.042,2.28130431]
[1643382631580,40.83025813,90.129,90.042,2.28130431]
[1643382631781,0.1,90.128,90.042,2.28130431]
[1643382631980,6.0,90.119,90.042,2.28130431]
[1643382632391,0.25,90.118,90.042,2.28130431]
[1643382632881,0.25,90.118,90.018,2.28130431]
[1643382633081,0.25,90.118,90.01,13.58]
[1643382633381,0.25,90.118,90.02,16.662]
[1643382633580,6.0,90.11,90.02,30.242]
[1643382633781,0.25,90.109,90.021,0.25]
[1643382634381,0.25,90.109,90.022,10.66405]
[1643382634781,0.25,90.109,90.022,12.94535431]
[1643382634986,0.25,90.117,90.023,112.0]
[1643382635182,0.25,90.117,90.023,114.28130431]
[1643382635382,0.1,90.127,90.023,124.89049128]
[1643382635383,0.35,90.127,90.023,124.89049128]
[1643382635584,0.35,90.127,90.024,2.28130431]
[1643382635784,6.0,90.118,90.024,2.28130431]
[1643382635990,6.0,90.118,90.03,16.661]
[1643382636185,43.37179535,90.117,90.023,10.60918697]
[1643382636384,43.37179535,90.117,90.02,13.58]
[1643382636385,0.1,90.116,90.02,13.58]